fUSD/lending_fUSD_20260421
["ID","MTS","AMOUNT","RATE_DAILY","PERIOD"]
[420936997,1776750632205,-500.0,9.877e-05,2]
[420936998,1776750632215,-642.0,9.877e-05,2]
[420936999,1776750632225,-500.0,9.877e-05,2]
[420937000,1776750632235,-642.0,9.877e-05,2]
[420937001,1776750632244,-642.0,9.877e-05,2]
[420937002,1776750632254,-500.0,9.877e-05,2]
[420937003,1776750632263,-500.0,9.877e-05,2]
[420937004,1776750632273,-642.0,9.877e-05,2]
[420937005,1776750632283,-642.0,9.877e-05,2]
[420937006,1776750632292,-500.0,9.877e-05,2]
[420937007,1776750632302,-500.0,9.877e-05,2]
[420937008,1776750632311,-642.0,9.877e-05,2]
[420937009,1776750632320,-500.0,9.877e-05,2]
[420937010,1776750632334,-357.80267097,9.877e-05,2]
[420937011,1776750632370,-284.19732903,9.877e-05,2]
[420937012,1776750632380,-500.0,9.877e-05,2]
[420937013,1776750632389,-642.0,9.877e-05,2]
[420937014,1776750632399,-500.0,9.877e-05,2]
[420937015,1776750632409,-500.0,9.877e-05,2]
[420937016,1776750632419,-642.0,9.877e-05,2]
[420937017,1776750632429,-448.53868973,9.877e-05,2]
[420937018,1776750632445,-51.46131027,9.877e-05,2]
[420937019,1776750632455,-500.0,9.877e-05,2]
[420937020,1776750632464,-246.32241005,9.877e-05,2]
[420937021,1776750638032,-395.67758995,9.877e-05,2]
[420937022,1776750638043,-500.0,9.877e-05,2]
[420937023,1776750638053,-500.0,9.877e-05,2]
[420937024,1776750638063,-642.0,9.877e-05,2]
[420937025,1776750638073,-500.0,9.877e-05,2]
[420937026,1776750638082,-237.13619375,9.877e-05,2]
[420937027,1776750638091,-642.0,9.877e-05,2]
[420937028,1776750638101,-500.0,9.877e-05,2]
[420937029,1776750638111,-642.0,9.877e-05,2]
[420937030,1776750638121,-500.0,9.877e-05,2]
[420937031,1776750638130,-642.0,9.877e-05,2]
[420937032,1776750638140,-501.142069,9.877e-05,2]
[420937033,1776750638150,-642.0,9.877e-05,2]
[420937034,1776750638160,-150.0,9.877e-05,2]
[420937035,1776750638170,-642.0,9.877e-05,2]
[420937036,1776750638179,-642.0,9.877e-05,2]
[420937037,1776750638189,-642.0,9.877e-05,2]
[420937038,1776750638199,-642.0,9.877e-05,2]
[420937039,1776750638209,-642.0,9.877e-05,2]
[420937040,1776750638219,-642.0,9.877e-05,2]
[420937041,1776750638229,-642.0,9.877e-05,2]
[420937042,1776750638238,-500.0,9.877e-05,2]
[420937043,1776750638248,-500.0,9.877e-05,2]
[420937044,1776750638258,-500.0,9.877e-05,2]
[420937045,1776750638268,-642.0,9.877e-05,2]
[420937046,1776750638278,-500.0,9.877e-05,2]
[420937047,1776750638288,-500.0,9.877e-05,2]
[420937048,1776750638299,-500.0,9.877e-05,2]
[420937049,1776750638309,-500.0,9.877e-05,2]
[420937050,1776750638319,-500.0,9.877e-05,2]
[420937051,1776750638329,-500.0,9.877e-05,2]
[420937052,1776750638339,-360.97181461,9.877e-05,2]
[420937053,1776750638349,-500.0,9.877e-05,2]
[420937054,1776750638359,-500.0,9.877e-05,2]
[420937055,1776750638369,-150.0,9.877e-05,2]
[420937056,1776750638379,-500.0,9.877e-05,2]
[420937057,1776750638390,-500.0,9.877e-05,2]
[420937058,1776750638399,-500.0,9.877e-05,2]
[420937059,1776750638409,-500.0,9.877e-05,2]
[420937060,1776750638419,-322.58069407,9.877e-05,2]
[420937061,1776750638429,-150.0,9.877e-05,2]
[420937062,1776750638439,-648.05321645,9.877e-05,2]
[420937063,1776750638448,-6193.85,0.0001,2]
[420937064,1776750638458,-299.99,0.0001,2]
[420937065,1776750638467,-499.99,0.0001,2]
[420937066,1776750638477,-9999.99,0.0001,2]
[420937067,1776750638486,-542.86,0.0001,2]
[420937068,1776750638496,-150.99,0.0001,2]
[420937069,1776750638505,-151.0,0.0001,2]
[420937070,1776750638516,-151.0,0.0001,2]
[420937071,1776750638525,-151.0,0.0001,2]
[420937072,1776750638535,-151.0,0.0001,2]
[420937073,1776750638544,-151.0,0.0001,2]
[420937074,1776750638553,-151.0,0.0001,2]
[420937075,1776750638563,-151.0,0.0001,2]
[420937076,1776750638572,-151.0,0.0001,2]
[420937077,1776750638582,-151.0,0.0001,2]
[420937078,1776750638591,-151.0,0.0001,2]
[420937079,1776750638600,-151.0,0.0001,2]
[420937080,1776750638609,-500.0,0.00010049,2]
[420937081,1776750638619,-578.20924308,0.00010049,2]
[420937082,1776750638628,-721.12765535,0.00010049,2]
[420937083,1776750638638,-9552.16786547,0.00010049,2]
[420937084,1776750638648,-500.0,0.00010049,2]
[420937085,1776750638657,-1428.38747117,0.00010049,2]
[420937086,1776750638667,-151.0,0.00010049,2]
[420937087,1776750638676,-209.40437684,0.00010049,2]
[420937088,1776750638686,-174.61919141,0.00010049,2]
[420937089,1776750638695,-203.87379393,0.00010049,2]
[420937090,1776750638706,-764.99227377,0.00010049,2]
[420937091,1776750638716,-188.7255859,0.00010049,2]
[420937092,1776750638725,-1000.0,0.00010049,2]
[420937093,1776750638735,-287.37033828,0.00010049,2]
[420937094,1776750638745,-1000.0,0.00010049,2]
[420937095,1776750638754,-418.9812573,0.00010049,2]
[420937096,1776750638764,-500.0,0.00010104,2]
[420937097,1776750638774,-9905.5980765,0.00010104,2]
[420937098,1776750638783,-151.0,0.00010104,2]
[420937099,1776750638794,-310.45,0.00010105,2]
[420937100,1776750638803,-500.0,0.00010137,2]
[420937101,1776750638813,-500.0,0.00010137,2]
[420937102,1776750638822,-500.0,0.00010137,2]
[420937103,1776750638832,-500.0,0.00010137,2]
[420937104,1776750638841,-500.0,0.00010137,2]
[420937105,1776750638850,-500.0,0.00010137,2]
[420937106,1776750638860,-500.0,0.00010137,2]
[420937107,1776750638870,-500.0,0.00010137,2]
[420937108,1776750638880,-500.0,0.00010137,2]
[420937109,1776750638890,-500.0,0.00010137,2]
[420937110,1776750638899,-500.0,0.00010137,2]
[420937111,1776750638909,-150.0,0.00010137,2]
[420937112,1776750638919,-211.47088108,0.00010137,2]
[420937113,1776750638928,-500.0,0.00010159,2]
[420937114,1776750638938,-370.01812816,0.00010159,2]
[420937115,1776750638952,-9902.08707717,0.00010159,2]
[420937116,1776750638961,-151.0,0.00010159,2]
[420937117,1776750638971,-2500.0,0.00010165,2]
[420937118,1776750638980,-700.0,0.00010169,2]
[420937119,1776750638990,-500.0,0.00010214,2]
[420937120,1776750638999,-10652.17309792,0.00010214,2]
[420937121,1776750639009,-151.0,0.00010214,2]
[420937122,1776750639018,-250.55,0.00010231,2]
[420937123,1776750639028,-500.0,0.00010264,2]
[420937124,1776750639038,-500.0,0.00010264,2]
[420937125,1776750639048,-248.73856104,0.00010264,2]
[420937126,1776750639057,-500.0,0.00010269,2]
[420937127,1776750639067,-313.72307224,0.00010269,2]
[420937128,1776750639076,-151.0,0.00010269,2]
[420937129,1776750639086,-500.0,0.00010322,2]
[420937130,1776750639096,-500.0,0.00010322,2]
[420937131,1776750639106,-410.17148168,0.00010322,2]
[420937132,1776750639116,-474.92080659,0.00010322,2]
[420937133,1776750639126,-500.0,0.00010322,2]
[420937134,1776750639135,-500.0,0.00010322,2]
[420937135,1776750639145,-500.0,0.00010322,2]
[420937136,1776750639154,-210.02533604,0.00010322,2]
[420937137,1776750639164,-500.0,0.00010322,2]
[420937138,1776750639174,-500.0,0.00010322,2]
[420937139,1776750639184,-500.0,0.00010322,2]
[420937140,1776750639193,-16282.28,0.00010323,2]
[420937141,1776750639203,-500.0,0.00010324,2]
[420937142,1776750639212,-95.81489699,0.00010379,2]
[420937143,1776750639224,-214.6539077,0.00010379,2]
[420937144,1776750639234,-500.0,0.00010379,2]
[420937145,1776750639243,-1111.4847539,0.00010486,2]
[420937146,1776750639255,-600.0,0.00010486,2]
[420937147,1776750639267,-1306.115811,0.00010486,2]
[420937151,1776750640025,-29253.8440339,0.00010538,2]
[420937152,1776750640035,-672.5498004,0.00010538,2]
[420937153,1776750640045,-2603.4057379,0.00010538,2]
[420937154,1776750640055,-3084.5396231,0.00010538,2]
[420937155,1776750640064,-2472.6880233,0.00010538,2]
[420937156,1776750640074,-151.0,0.00010538,2]
[420937157,1776750640084,-183.746442,0.00010538,2]
[420937158,1776750640093,-150.33,0.00010548,2]
[420937159,1776750640103,-500.0,0.00010573,2]
[420937160,1776750640112,-593.78312861,0.00010573,2]
[420937161,1776750640122,-152.50047,0.00010585,2]
[420937162,1776750640132,-1532.0,0.00010586,2]
[420937163,1776750640141,-1532.0,0.00010586,2]
[420937164,1776750640150,-152.0,0.00010586,2]
[420937165,1776750640160,-1532.0,0.00010586,2]
[420937166,1776750640170,-152.0,0.00010586,2]
[420937167,1776750640179,-167.26573406,0.00010586,2]
[420937168,1776750640189,-1532.0,0.00010586,2]
[420937169,1776750640199,-152.0,0.00010586,2]
[420937170,1776750640208,-1532.0,0.00010586,2]
[420937171,1776750640218,-160.47105757,0.00010586,2]
[420937172,1776750640227,-1532.0,0.00010586,2]
[420937173,1776750640237,-1294.23732989,0.00010586,2]
[420937174,1776750640246,-1002.73475338,0.00010597,2]
[420937175,1776750640256,-198.84055429,0.00010597,2]
[420937176,1776750640265,-181.08010149,0.00010597,2]
[420937177,1776750640275,-150.60494332,0.000106,2]
[420937178,1776750640284,-152.69513025,0.000106,2]
[420937179,1776750640294,-5000.0,0.000106,2]
[420937180,1776750640304,-318.8028453,0.000106,2]
[420937181,1776750640314,-151.0,0.0001062,2]
[420937182,1776750640323,-1680.0,0.00010637,2]
[420937183,1776750640332,-152.0,0.0001065,7]
[420937184,1776750640342,-2000.0,0.00010671,2]
[420937185,1776750640351,-168.02017336,0.00010673,2]
[420937186,1776750640361,-500.0,0.00010673,2]
[420937187,1776750640370,-566.0909985,0.00010673,2]
[420937188,1776750640380,-502.64562537,0.00010673,2]
[420937189,1776750640390,-151.0,0.00010697,2]
[420937190,1776750640400,-422.0,0.000107,5]
[420937191,1776750640410,-200.0,0.000107,2]
[420937192,1776750640420,-9888.11446438,0.000107,2]
[420937193,1776750642063,-1800.02694516,0.000107,2]
[420937194,1776750642079,-3156.65276665,0.000107,2]
[420937195,1776750642105,-3448.72727273,0.000107,2]
[420937201,1776750642639,-900.0,0.00010486,2]
[420937202,1776750642954,-2304.1956613,0.00010486,2]
[420937203,1776750642964,-34920.25527814,0.000107,2]
[420937205,1776750645735,-39092.44072773,0.000107,2]
[420937206,1776750645747,-4441.45019744,0.000107,2]
[420937207,1776750645893,-7176.19029309,0.000107,2]
[420937208,1776750645905,-719.19154744,0.000107,2]
[420937270,1776751341787,-4972.639356,9.582e-05,2]
[420937271,1776751341810,-1200.0,9.63e-05,2]
[420937272,1776751341833,-300.0,9.631e-05,2]
[420937273,1776751341855,-150.0,9.631e-05,2]
[420937274,1776751341881,-3377.360644,9.632e-05,2]
[420937275,1776751343737,-10000.0,9.632e-05,2]
[420937276,1776751347912,-1800.0,9.632e-05,2]
[420937277,1776751376499,-2000.0,9.477e-05,2]
[420937278,1776751376521,-4573.76,9.532e-05,2]
[420937279,1776751376543,-176.24,9.585e-05,2]
[420937280,1776751376569,-3250.0,9.632e-05,2]
[420937281,1776751378988,-270.797456,9.632e-05,2]
[420937282,1776751379016,-9729.202544,9.632e-05,2]
[420937283,1776751380464,-10000.0,9.632e-05,2]
[420937284,1776751381669,-300.0,9.631e-05,2]
[420937285,1776751381698,-9700.0,9.632e-05,2]
[420937286,1776751384241,-150.0,9.631e-05,2]
[420937287,1776751384268,-9850.0,9.632e-05,2]
[420937288,1776751385785,-10000.0,9.632e-05,2]
[420937289,1776751388477,-223.0,9.632e-05,3]
[420937290,1776751388503,-9777.0,9.632e-05,2]
[420937291,1776751389858,-10000.0,9.632e-05,2]
[420937292,1776751400030,-219.1699123,9.631e-05,2]
[420937293,1776751400056,-4080.8300877,9.632e-05,2]
[420937295,1776751541171,688.79,0.000165,30]
[420937310,1776751701386,-257.0,9.143e-05,2]
[420937311,1776751701409,-3443.0,9.143e-05,2]
[420937312,1776751732039,-10000.0,9.143e-05,2]
[420937313,1776751733450,-10000.0,9.143e-05,2]
[420937314,1776751738363,-8910.0,9.143e-05,2]
[420937315,1776751767721,-150.0,9.142e-05,2]
[420937316,1776751767742,-4250.0,9.143e-05,2]
[420937323,1776751832365,-498.89387459,9.111e-05,2]
[420937348,1776751838693,-1101.10612541,9.111e-05,2]
[420937349,1776751838703,-1200.0,9.142e-05,2]
[420937350,1776751838712,-73586.52159066,9.143e-05,2]
[420937351,1776751838724,-2612.13840934,9.143e-05,2]
[420937352,1776751838733,-300.0,9.171e-05,2]
[420937353,1776751838743,-500.0,9.199e-05,2]
[420937354,1776751838752,-300.0,9.366e-05,2]
[420937355,1776751838762,-300.0,9.366e-05,2]
[420937356,1776751838771,-7301.03,9.427e-05,2]
[420937357,1776751838780,-500.0,9.53e-05,2]
[420937358,1776751838789,-500.0,9.531e-05,2]
[420937359,1776751838799,-36680.31592033,9.532e-05,2]
[420937360,1776751838810,-1826.1386616,9.532e-05,2]
[420937361,1776751838829,-306.24160024,9.532e-05,2]
[420937362,1776751838840,-513.67975255,9.532e-05,2]
[420937363,1776751838860,-267.29626824,9.532e-05,2]
[420937365,1776751840255,-2291.76539704,9.532e-05,2]
[420937366,1776751840264,-1742.06678167,9.532e-05,2]
[420937367,1776751840361,-20799.755009,9.532e-05,2]
[420937368,1776751840844,-90.07687891,9.532e-05,2]
[420937374,1776751842822,-888.0,9.532e-05,2]
[420937375,1776751843137,-15868.64290021,9.532e-05,2]
[420937381,1776751845862,-7140.19831857,9.532e-05,2]
[420937382,1776751845968,-923.0,9.532e-05,2]
[420937383,1776751845979,-380.43918685,9.532e-05,2]
[420937384,1776751846075,-8989.64302479,9.532e-05,2]
[420937385,1776751846084,-187.0,9.632e-05,3]
[420937386,1776751846094,-200.0,9.656e-05,2]
[420937387,1776751846104,-250.55,9.719e-05,2]
[420937388,1776751846113,-299.99,9.863e-05,2]
[420937389,1776751846123,-260.0,9.863e-05,2]
[420937390,1776751846132,-500.0,9.872e-05,2]
[420937391,1776751846142,-500.0,9.872e-05,2]
[420937392,1776751846151,-500.0,9.872e-05,2]
[420937393,1776751846161,-500.0,9.872e-05,2]
[420937394,1776751846170,-500.0,9.872e-05,2]
[420937395,1776751846180,-500.0,9.872e-05,2]
[420937396,1776751846189,-500.0,9.872e-05,2]
[420937397,1776751846198,-500.0,9.872e-05,2]
[420937398,1776751846208,-500.0,9.872e-05,2]
[420937399,1776751846218,-500.0,9.872e-05,2]
[420937400,1776751846227,-500.0,9.872e-05,2]
[420937401,1776751846237,-360.97181461,9.872e-05,2]
[420937402,1776751846246,-500.0,9.872e-05,2]
[420937403,1776751846256,-500.0,9.872e-05,2]
[420937404,1776751846265,-150.0,9.872e-05,2]
[420937405,1776751846275,-500.0,9.872e-05,2]
[420937406,1776751846284,-173.19648219,9.872e-05,2]
[420937407,1776751846296,-326.80351781,9.872e-05,2]
[420937408,1776751846306,-289.19648219,9.872e-05,2]
[420937433,1776752337395,280.0,9.336e-05,2]
[420937434,1776752430801,-1200.0,9.26e-05,2]
[420937435,1776752430822,-8800.0,9.261e-05,2]
[420937437,1776752734379,-1852.42,9.022e-05,2]
[420937438,1776752734401,-1147.58,9.042e-05,2]
[420937439,1776752833606,244.0,0.00013699,30]
[420937442,1776752917241,-1500.0,8.92e-05,2]
[420937443,1776752917263,-500.0,8.942e-05,2]
[420937444,1776752917285,-1000.0,8.969e-05,2]
[420937445,1776752931187,215.33187747,0.000165,30]
[420937448,1776753023459,150.0,0.00016226,30]
[420937449,1776753023528,150.0,0.00016226,30]
[420937450,1776753023557,500.0,0.00016226,30]
[420937451,1776753023626,500.0,0.00016226,30]
[420937452,1776753023675,500.0,0.00016226,30]
[420937453,1776753023809,150.0,0.00016226,30]
[420937454,1776753023848,500.0,0.00016226,30]
[420937455,1776753023887,261.94558681,0.00016226,30]
[420937456,1776753023923,500.0,0.00016226,30]
[420937457,1776753023951,500.0,0.000165,30]
[420937458,1776753023998,500.0,0.00016226,30]
[420937459,1776753024045,500.0,0.00016226,30]
[420937460,1776753024092,500.0,0.00016226,30]
[420937461,1776753024121,500.0,0.00016226,30]
[420937462,1776753024164,500.0,0.00016226,30]
[420937463,1776753024191,500.0,0.00016226,30]
[420937464,1776753024224,500.0,0.00016226,30]
[420937465,1776753024252,500.0,0.00016226,30]
[420937466,1776753024296,500.0,0.00016226,30]
[420937467,1776753024325,500.0,0.00016226,30]
[420937468,1776753024359,500.0,0.00016226,30]
[420937469,1776753024387,500.0,0.00016226,30]
[420937470,1776753024422,500.0,0.00016226,30]
[420937471,1776753024454,500.0,0.00016226,30]
[420937472,1776753024496,500.0,0.00016226,30]
[420937473,1776753024533,500.0,0.00016226,30]
[420937474,1776753024638,500.0,0.00016226,30]
[420937475,1776753024702,500.0,0.00016226,30]
[420937476,1776753025193,322.58069407,0.00016226,30]
[420937477,1776753025221,500.0,0.00016226,30]
[420937478,1776753025279,500.0,0.00016226,30]
[420937479,1776753025307,237.13619375,0.00016226,30]
[420937480,1776753026939,500.0,0.00016226,30]
[420937481,1776753027090,500.0,0.00016226,30]
[420937482,1776753027241,248.73856104,0.00016226,30]
[420937486,1776753031961,-252.80804943,8.934e-05,2]
[420937487,1776753032017,-347.8503141,8.934e-05,2]
[420937488,1776753032029,-284.15203215,8.934e-05,2]
[420937489,1776753032076,-582.27824253,8.934e-05,2]
[420937490,1776753032087,-1640.67172989,8.934e-05,2]
[420937491,1776753032098,-1794.47750331,8.934e-05,2]
[420937492,1776753032109,-1005.3639732,8.934e-05,2]
[420937493,1776753032193,-418.75,8.934e-05,2]
[420937494,1776753032204,-462.46160238,8.934e-05,2]
[420937495,1776753032244,-9493.46655301,8.934e-05,2]
[420937496,1776753032253,-529.03,8.969e-05,2]
[420937497,1776753032263,-300.0,8.98e-05,2]
[420937498,1776753032272,-1200.0,8.98e-05,2]
[420937499,1776753032282,-9613.07,8.981e-05,2]
[420937500,1776753032291,-852.42,9.042e-05,2]
[420937501,1776753032300,-192.80922118,9.042e-05,2]
[420937502,1776753032310,-1749.21,9.261e-05,2]
[420937503,1776753032320,-9880.02,9.336e-05,2]
[420937504,1776753032329,-854.39,9.348e-05,2]
[420937505,1776753032339,-150.0,9.401e-05,2]
[420937506,1776753032348,-185.6,9.402e-05,2]
[420937508,1776753032358,-499.99,9.402e-05,2]
[420937510,1776753032367,-518.99,9.402e-05,2]
[420937512,1776753032376,-9999.99,9.402e-05,2]
[420937513,1776753032389,-500.37930615,9.513e-05,2]
[420937514,1776753032398,-500.0,9.513e-05,2]
[420937515,1776753032407,-611.92268074,9.513e-05,2]
[420937516,1776753032416,-206.97,9.531e-05,2]
[420937517,1776753032426,-475.21478668,9.532e-05,2]
[420937518,1776753032435,-6193.85,9.532e-05,2]
[420937519,1776753032445,-9999.99,9.532e-05,2]
[420937520,1776753032454,-150.99,9.532e-05,2]
[420937521,1776753032463,-7185.12,9.532e-05,2]
[420937522,1776753032472,-4999.99,9.532e-05,2]
[420937523,1776753032482,-299.99,9.532e-05,2]
[420937524,1776753032491,-42393.14,9.532e-05,2]
[420937525,1776753032501,-23387.67230983,9.532e-05,2]
[420937526,1776753038165,-1612.31769017,9.532e-05,2]
[420937527,1776753038176,-152.0,9.534e-05,7]
[420937528,1776753038185,-206.97,9.805e-05,2]
[420937529,1776753038195,-260.0,9.863e-05,2]
[420937530,1776753038205,-300.0,9.866e-05,2]
[420937531,1776753038214,-88.28383164,9.866e-05,2]
[420937532,1776753038226,-161.71616836,9.866e-05,2]
[420937533,1776753038235,-198.24613206,9.866e-05,2]
[420937534,1776753038247,-101.75386794,9.866e-05,2]
[420937535,1776753038256,-708.10694529,9.866e-05,2]
[420937536,1776753038265,-500.0,9.871e-05,2]
[420937537,1776753038274,-500.0,9.871e-05,2]
[420937538,1776753038284,-198.45368898,9.871e-05,2]
[420937539,1776753038296,-301.54631102,9.871e-05,2]
[420937540,1776753038306,-500.0,9.871e-05,2]
[420937541,1776753038315,-500.0,9.871e-05,2]
[420937542,1776753038324,-500.0,9.871e-05,2]
[420937543,1776753038333,-500.0,9.871e-05,2]
[420937544,1776753038343,-500.0,9.871e-05,2]
[420937545,1776753038352,-500.0,9.871e-05,2]
[420937546,1776753038362,-500.0,9.871e-05,2]
[420937547,1776753038371,-500.0,9.871e-05,2]
[420937548,1776753038380,-500.0,9.871e-05,2]
[420937549,1776753038390,-500.0,9.871e-05,2]
[420937550,1776753038399,-500.0,9.871e-05,2]
[420937551,1776753038409,-500.0,9.871e-05,2]
[420937552,1776753038418,-500.0,9.871e-05,2]
[420937553,1776753038428,-500.0,9.871e-05,2]
[420937554,1776753038438,-500.0,9.871e-05,2]
[420937555,1776753038447,-500.0,9.871e-05,2]
[420937556,1776753038457,-500.0,9.871e-05,2]
[420937557,1776753038467,-500.0,9.871e-05,2]
[420937558,1776753038476,-221.30969447,9.871e-05,2]
[420937559,1776753038489,-278.69030553,9.871e-05,2]
[420937560,1776753038499,-500.0,9.871e-05,2]
[420937561,1776753038514,-87.4390194,9.871e-05,2]
[420937562,1776753038531,-412.5609806,9.871e-05,2]
[420937563,1776753038541,-500.0,9.871e-05,2]
[420937564,1776753038551,-500.0,9.871e-05,2]
[420937565,1776753038561,-302.52809889,9.871e-05,2]
[420937566,1776753038573,-197.47190111,9.871e-05,2]
[420937567,1776753038583,-500.0,9.871e-05,2]
[420937568,1776753038592,-500.0,9.871e-05,2]
[420937569,1776753038602,-500.0,9.871e-05,2]
[420937570,1776753038612,-500.0,9.871e-05,2]
[420937571,1776753038622,-500.0,9.871e-05,2]
[420937572,1776753038632,-500.0,9.871e-05,2]
[420937573,1776753038642,-500.0,9.871e-05,2]
[420937574,1776753038652,-500.0,9.871e-05,2]
[420937575,1776753038662,-500.0,9.871e-05,2]
[420937576,1776753038672,-591.48635905,9.871e-05,2]
[420937577,1776753038682,-500.0,9.871e-05,2]
[420937578,1776753038692,-500.0,9.871e-05,2]
[420937579,1776753038702,-500.0,9.871e-05,2]
[420937580,1776753038712,-500.0,9.871e-05,2]
[420937581,1776753038722,-500.0,9.871e-05,2]
[420937582,1776753038731,-500.0,9.871e-05,2]
[420937583,1776753038741,-500.0,9.871e-05,2]
[420937584,1776753038751,-500.0,9.871e-05,2]
[420937585,1776753038760,-500.0,9.871e-05,2]
[420937586,1776753038770,-500.0,9.871e-05,2]
[420937587,1776753038779,-500.0,9.871e-05,2]
[420937588,1776753038789,-500.0,9.871e-05,2]
[420937589,1776753038798,-500.0,9.871e-05,2]
[420937590,1776753038808,-500.0,9.871e-05,2]
[420937591,1776753038818,-500.0,9.871e-05,2]
[420937592,1776753038828,-500.0,9.871e-05,2]
[420937593,1776753038837,-500.0,9.871e-05,2]
[420937594,1776753038848,-500.0,9.871e-05,2]
[420937595,1776753038858,-500.0,9.871e-05,2]
[420937596,1776753038873,-500.0,9.871e-05,2]
[420937597,1776753038883,-500.0,9.871e-05,2]
[420937598,1776753038893,-500.0,9.871e-05,2]
[420937599,1776753038902,-500.0,9.871e-05,2]
[420937600,1776753038916,-300.0,9.871e-05,2]
[420937601,1776753038925,-500.0,9.871e-05,2]
[420937602,1776753038935,-500.0,9.871e-05,2]
[420937603,1776753038945,-500.0,9.871e-05,2]
[420937604,1776753038955,-500.0,9.871e-05,2]
[420937605,1776753038964,-500.0,9.871e-05,2]
[420937606,1776753038974,-500.0,9.871e-05,2]
[420937607,1776753038983,-500.0,9.871e-05,2]
[420937608,1776753038993,-500.0,9.871e-05,2]
[420937609,1776753039003,-500.0,9.871e-05,2]
[420937610,1776753039013,-500.0,9.871e-05,2]
[420937611,1776753039022,-560.0,9.872e-05,2]
[420937612,1776753039035,-560.0,9.872e-05,2]
[420937613,1776753039044,-560.0,9.872e-05,2]
[420937614,1776753039054,-560.0,9.872e-05,2]
[420937615,1776753039064,-560.0,9.872e-05,2]
[420937616,1776753039073,-560.0,9.872e-05,2]
[420937617,1776753039083,-560.0,9.872e-05,2]
[420937618,1776753039092,-560.0,9.872e-05,2]
[420937619,1776753039102,-560.0,9.872e-05,2]
[420937620,1776753039111,-560.0,9.872e-05,2]
[420937621,1776753039121,-560.0,9.872e-05,2]
[420937622,1776753039132,-560.0,9.872e-05,2]
[420937623,1776753039141,-560.0,9.872e-05,2]
[420937624,1776753039151,-560.0,9.872e-05,2]
[420937625,1776753039160,-560.0,9.872e-05,2]
[420937626,1776753039171,-560.0,9.872e-05,2]
[420937627,1776753039180,-560.0,9.872e-05,2]
[420937628,1776753039190,-560.0,9.872e-05,2]
[420937629,1776753039199,-560.0,9.872e-05,2]
[420937630,1776753039209,-560.0,9.872e-05,2]
[420937631,1776753039219,-560.0,9.872e-05,2]
[420937632,1776753039228,-560.0,9.872e-05,2]
[420937633,1776753039237,-560.0,9.872e-05,2]
[420937634,1776753039246,-567.35863995,9.872e-05,2]
[420937635,1776753039256,-500.0,9.872e-05,2]
[420937636,1776753039265,-500.0,9.872e-05,2]
[420937637,1776753039275,-500.0,9.872e-05,2]
[420937638,1776753039284,-500.0,9.872e-05,2]
[420937639,1776753039293,-500.0,9.872e-05,2]
[420937640,1776753039302,-500.0,9.872e-05,2]
[420937641,1776753039316,-500.0,9.872e-05,2]
[420937642,1776753039325,-500.0,9.872e-05,2]
[420937643,1776753039335,-500.0,9.872e-05,2]
[420937644,1776753039344,-420.0,9.878e-05,2]
[420937645,1776753039354,-1680.0,9.878e-05,2]
[420937646,1776753039364,-2500.0,9.9e-05,2]
[420937647,1776753039373,-185.6,9.919e-05,2]
[420937648,1776753039382,-300.0,9.924e-05,2]
[420937649,1776753039392,-459.42902022,0.0001,2]
[420937650,1776753039406,-1628.38507587,0.0001,2]
[420937651,1776753039415,-197.75358573,0.0001,2]
[420937652,1776753040533,-297.0302,0.0001,2]
[420937653,1776753040642,-335.38,0.0001,2]
[420937654,1776753040655,-10224.91095019,0.0001,2]
[420937655,1776753040665,-158.0,0.0001,2]
[420937656,1776753040675,-158.0,0.0001,2]
[420937657,1776753040685,-151.0,0.0001,2]